bitfinex/quotes_BTCUSD_20250602
["timestamp","ask_amount","ask_price","bid_price","bid_amount"]
[1748866977250,0.54533521,103930.0,103920.0,0.05508283]
[1748866977468,0.54533521,103930.0,103920.0,0.05508277]
[1748866977693,0.54533521,103930.0,103920.0,0.05508355]
[1748866977908,0.45282399,103930.0,103920.0,0.05508355]
[1748866978798,0.45282399,103930.0,103920.0,0.06355652]
[1748866979237,0.45282399,103930.0,103920.0,0.07203165]
[1748866979692,0.45282399,103930.0,103920.0,0.06355759]
[1748866979904,0.54533521,103930.0,103920.0,0.05680619]
[1748866980122,0.54533521,103930.0,103920.0,0.07203492]
[1748866980339,0.54533521,103930.0,103920.0,0.0635643]
[1748866980552,0.45282399,103930.0,103920.0,0.0635643]
[1748866980768,0.45282399,103930.0,103920.0,0.06356688]
[1748866981191,0.45282399,103930.0,103920.0,0.06529054]
[1748866981406,0.45282399,103930.0,103920.0,0.07376819]
[1748866981621,0.45282399,103930.0,103920.0,0.06529054]
[1748866981823,0.45282399,103930.0,103920.0,0.07377025]
[1748866982030,0.54533521,103930.0,103920.0,0.05681528]
[1748866982455,0.54533521,103930.0,103920.0,0.07205089]
[1748866982671,0.54533521,103930.0,103920.0,0.07205662]
[1748866982901,0.54533521,103930.0,103920.0,0.06357372]
[1748866984160,0.54533521,103930.0,103920.0,0.05681528]
[1748866984364,0.54533521,103930.0,103920.0,0.07207101]
[1748866984786,0.54533521,103930.0,103920.0,0.06358026]
[1748866985232,0.54533521,103930.0,103920.0,0.06358004]
[1748866985670,0.54533521,103930.0,103920.0,0.0813076]
[1748866985875,0.54533521,103930.0,103920.0,0.0982813]
[1748866986089,0.45282399,103930.0,103920.0,0.07453496]
[1748866986317,0.45282399,103930.0,103920.0,0.0812997]
[1748866986748,0.45282399,103930.0,103920.0,0.0813001]
[1748866987380,0.45282399,103930.0,103920.0,0.0813]
[1748866988021,0.45282399,103930.0,103920.0,0.07453496]
[1748866988227,0.45282399,103930.0,103920.0,0.07281712]
[1748866988442,0.54533521,103930.0,103920.0,0.07281702]
[1748866988877,0.54533521,103930.0,103920.0,0.072817]
[1748866989310,0.45282399,103930.0,103920.0,0.07281681]
[1748866989532,0.45282399,103930.0,103920.0,0.07281676]
[1748866989969,0.45282399,103930.0,103920.0,0.07281681]
[1748866990422,0.45282399,103930.0,103920.0,0.07281678]
[1748866991650,0.45282399,103930.0,103920.0,0.07281676]
[1748866992069,0.54533521,103930.0,103920.0,0.07281676]
[1748866992499,0.45282399,103930.0,103920.0,0.07281676]
[1748866993773,0.45282399,103930.0,103920.0,0.07281677]
[1748866993991,0.45282399,103930.0,103920.0,0.06605187]
[1748866994445,0.45282399,103930.0,103920.0,0.07281677]
[1748866996120,0.45282399,103930.0,103920.0,0.07281679]
[1748866997374,0.86027752,103930.0,103920.0,0.0728168]
[1748866997814,0.95278874,103930.0,103920.0,0.0728168]
[1748866997998,0.95278874,103930.0,103920.0,0.07281684]
[1748866998638,0.95278874,103930.0,103920.0,0.06605187]
[1748866998845,0.95278874,103930.0,103920.0,0.07281685]
[1748866999274,0.95278874,103930.0,103920.0,0.06605187]
[1748866999423,0.95278874,103930.0,103920.0,0.0728169]
[1748867000492,0.95278874,103930.0,103920.0,0.07281693]
[1748867000965,0.86027752,103930.0,103920.0,0.07281704]
[1748867001191,0.86027752,103930.0,103920.0,0.07281705]
[1748867001657,0.86027752,103930.0,103920.0,0.07281695]
[1748867002126,0.86027752,103930.0,103920.0,0.06605187]
[1748867002340,0.86027752,103930.0,103920.0,0.07281685]
[1748867002565,0.95278874,103930.0,103920.0,0.07281685]
[1748867003860,0.95278874,103930.0,103920.0,0.06605187]
[1748867004066,0.95278874,103930.0,103920.0,0.07281685]
[1748867004253,0.95278874,103930.0,103920.0,0.06358013]
[1748867004720,0.95278874,103930.0,103920.0,0.0635801]
[1748867005357,0.95278874,103930.0,103920.0,0.06357993]
[1748867005769,0.95278874,103930.0,103920.0,0.05681528]
[1748867006002,0.95278874,103930.0,103920.0,0.06357991]
[1748867006212,0.86027752,103930.0,103920.0,0.07281567]
[1748867007037,0.84217752,103930.0,103920.0,0.07281567]
[1748867007249,0.82467752,103930.0,103920.0,0.07281567]
[1748867007464,0.82467752,103930.0,103920.0,0.07281556]
[1748867007675,0.82467752,103930.0,103920.0,0.07281554]
[1748867007897,0.82467752,103930.0,103920.0,0.07281561]
[1748867008107,0.82467752,103930.0,103920.0,0.07281557]
[1748867008327,0.82467752,103930.0,103920.0,0.07281554]
[1748867008552,0.84287752,103930.0,103920.0,0.07281554]
[1748867008965,0.84287752,103930.0,103920.0,0.07281555]
[1748867009419,0.84287752,103930.0,103920.0,0.07281544]
[1748867009841,0.86057752,103930.0,103920.0,0.07281544]
[1748867010045,0.86057752,103930.0,103920.0,0.07281551]
[1748867010572,0.86057752,103930.0,103920.0,0.07281554]
[1748867011189,0.86057752,103930.0,103920.0,0.07281567]
[1748867012749,0.86057752,103930.0,103920.0,0.07281569]
[1748867013205,0.86057752,103930.0,103920.0,0.07281571]
[1748867013331,0.86057752,103930.0,103920.0,0.06358016]
[1748867013535,0.95308874,103930.0,103920.0,0.07281647]
[1748867013989,0.95308874,103930.0,103920.0,0.07281643]
[1748867014160,0.95308874,103930.0,103920.0,0.07281646]
[1748867014602,0.95308874,103930.0,103920.0,0.07281657]
[1748867014851,0.95308874,103930.0,103920.0,0.06981657]
[1748867015184,0.86057752,103930.0,103920.0,0.06405159]
[1748867015384,0.86057752,103930.0,103920.0,0.06781655]
[1748867015589,0.86057752,103930.0,103920.0,0.06781657]
[1748867016211,0.86057752,103930.0,103920.0,0.06981657]
[1748867016413,0.86057752,103930.0,103920.0,0.0698166]
[1748867017528,0.86057752,103930.0,103920.0,0.06981672]
[1748867017747,0.95308874,103930.0,103920.0,0.06981672]
[1748867018160,0.95308874,103930.0,103920.0,0.06305171]
[1748867018575,0.95308874,103930.0,103920.0,0.06981678]
[1748867018782,0.95308874,103930.0,103920.0,0.06981671]
[1748867019018,0.86057752,103930.0,103920.0,0.06981671]
[1748867019719,0.86057752,103930.0,103920.0,0.06981659]
[1748867021053,0.86057752,103930.0,103920.0,0.06305171]
[1748867021273,0.86057752,103930.0,103920.0,0.06981659]
[1748867022434,0.86057752,103930.0,103920.0,0.0698166]
[1748867025226,0.86057752,103930.0,103920.0,0.06981662]
[1748867025565,0.95308874,103930.0,103920.0,0.0605802]
[1748867025769,0.95308874,103930.0,103920.0,0.0698165]
[1748867025975,0.86057752,103930.0,103920.0,0.0698165]
[1748867026506,0.86057752,103930.0,103920.0,0.06305158]
[1748867026710,0.86057752,103930.0,103920.0,0.06981652]
[1748867026906,0.86057752,103930.0,103920.0,0.0698166]
[1748867027111,0.86057752,103930.0,103920.0,0.06981665]
[1748867028536,0.86057752,103930.0,103920.0,0.06981647]
[1748867029710,0.86057752,103930.0,103920.0,0.07658136]
[1748867030435,0.95308874,103930.0,103920.0,0.07658136]
[1748867030642,0.86057752,103930.0,103920.0,0.07658136]
[1748867032202,0.84287752,103930.0,103920.0,0.07658138]
[1748867032421,0.84287752,103930.0,103920.0,0.07658139]
[1748867033059,0.85997752,103930.0,103920.0,0.07658139]
[1748867033644,0.85997752,103930.0,103920.0,0.06981647]
[1748867033856,0.85997752,103930.0,103920.0,0.07658144]
[1748867035169,0.85997752,103930.0,103920.0,0.07658156]
[1748867035590,0.85997752,103930.0,103920.0,0.07658175]
[1748867037219,0.85997752,103930.0,103920.0,0.07658181]
[1748867037899,0.85997752,103930.0,103920.0,0.06981647]
[1748867038107,0.85997752,103930.0,103920.0,0.07658181]
[1748867038521,0.85997752,103930.0,103920.0,0.07658182]
[1748867039123,0.85997752,103930.0,103920.0,0.06981647]
[1748867039341,0.85997752,103930.0,103920.0,0.07658186]
[1748867040615,0.85997752,103930.0,103920.0,0.06981647]
[1748867040829,0.85997752,103930.0,103920.0,0.07658187]
[1748867041043,0.85997752,103930.0,103920.0,0.06734557]
[1748867041258,0.85997752,103930.0,103920.0,0.07658261]
[1748867041457,0.85997752,103930.0,103920.0,0.07658262]
[1748867042229,0.85997752,103930.0,103920.0,0.06981719]
[1748867042433,0.85997752,103930.0,103920.0,0.07658264]
[1748867042722,0.85997752,103930.0,103920.0,0.06981719]
[1748867042851,0.85997752,103930.0,103920.0,0.07658263]
[1748867043213,0.85997752,103930.0,103920.0,0.06981719]
[1748867043438,0.85997752,103930.0,103920.0,0.07658266]
[1748867044492,0.85997752,103930.0,103920.0,0.07658278]
[1748867045352,0.85997752,103930.0,103920.0,0.07658277]
[1748867045989,0.85997752,103930.0,103920.0,0.07658278]
[1748867046200,0.85997752,103930.0,103920.0,0.06981731]
[1748867046584,0.85997752,103930.0,103920.0,0.07658277]
[1748867047552,0.85997752,103930.0,103920.0,0.06981731]
[1748867047704,0.85997752,103930.0,103920.0,0.07658276]
[1748867048077,0.85997752,103930.0,103920.0,0.07658277]
[1748867048725,0.85997752,103930.0,103920.0,0.07658312]
[1748867048852,0.85997752,103930.0,103920.0,0.07658337]
[1748867050747,0.85997752,103930.0,103920.0,0.07658338]
[1748867051608,0.85997752,103930.0,103920.0,0.07658337]
[1748867052621,0.85997752,103930.0,103920.0,0.07658338]
[1748867052829,0.95248874,103930.0,103920.0,0.07658338]
[1748867053205,0.85997752,103930.0,103920.0,0.07658338]
[1748867053406,0.85997752,103930.0,103920.0,0.06981767]
[1748867053605,0.85997752,103930.0,103920.0,0.07658338]
[1748867054263,0.85997752,103930.0,103920.0,0.06981767]
[1748867054490,0.85997752,103930.0,103920.0,0.07658338]
[1748867055881,0.85997752,103930.0,103920.0,0.07658339]
[1748867056319,0.85997752,103930.0,103920.0,0.07658338]
[1748867056546,0.85997752,103930.0,103920.0,0.06981767]
[1748867056765,0.95248874,103930.0,103920.0,0.07658338]
[1748867057201,0.97173144,103930.0,103920.0,0.06734588]
[1748867057410,0.97173125,103930.0,103920.0,0.06734588]
[1748867057623,0.97173134,103930.0,103920.0,0.06734588]
[1748867057838,0.96210995,103930.0,103920.0,0.06734588]
[1748867058497,1.31173134,103930.0,103920.0,0.06734588]
[1748867058704,1.32135292,103930.0,103920.0,0.06734562]
[1748867058916,1.32135292,103930.0,103920.0,0.06058017]
[1748867059112,1.31173134,103930.0,103920.0,0.06058017]
[1748867059321,1.32135292,103930.0,103920.0,0.06058017]
[1748867059533,1.31173134,103930.0,103920.0,0.06058017]
[1748867059732,1.32135292,103930.0,103920.0,0.06058017]
[1748867059993,1.32135283,103930.0,103920.0,0.06058017]
[1748867060204,1.60503856,103930.0,103920.0,0.06058017]
[1748867060647,1.62428145,103930.0,103920.0,0.06058017]
[1748867061095,1.60503875,103930.0,103920.0,0.06058017]
[1748867064766,1.422222,103930.0,103920.0,0.06058017]
[1748867065391,1.43184376,103930.0,103920.0,0.06058017]
[1748867065601,1.43184367,103930.0,103920.0,0.06058017]
[1748867065809,1.422222,103930.0,103920.0,0.06058017]
[1748867067234,1.20499258,103930.0,103920.0,0.06058017]
[1748867067472,1.2146137,103930.0,103920.0,0.06058017]
[1748867068279,1.22423491,103930.0,103920.0,0.06058017]
[1748867069422,1.20499258,103930.0,103920.0,0.06058017]
[1748867070093,1.2146137,103930.0,103920.0,0.06058017]
[1748867070505,1.30712482,103930.0,103920.0,0.06058017]
[1748867070718,1.31674612,103930.0,103920.0,0.06058017]
[1748867070860,1.41260042,103930.0,103920.0,0.06058017]
[1748867071375,1.42222191,103930.0,103920.0,0.06058017]
[1748867072037,1.41260042,103930.0,103920.0,0.06058017]
[1748867072235,1.42222191,103930.0,103920.0,0.06058017]
[1748867074241,1.41260042,103930.0,103920.0,0.06058017]
[1748867074660,1.42222191,103930.0,103920.0,0.06058017]
[1748867074864,1.41260042,103930.0,103920.0,0.06058017]
[1748867075513,1.43184367,103930.0,103920.0,0.06058017]
[1748867076115,1.43184358,103930.0,103920.0,0.06058017]
[1748867076761,1.30712482,103930.0,103920.0,0.06058017]
[1748867076985,1.23385602,103930.0,103920.0,0.05958017]
[1748867077201,1.23385602,103930.0,103920.0,0.05758017]
[1748867077414,1.23485602,103930.0,103920.0,0.05758017]
[1748867078056,1.2156137,103930.0,103920.0,0.05758017]
[1748867078259,1.20599258,103930.0,103920.0,0.05758017]
[1748867078466,1.30812492,103930.0,103920.0,0.05758017]
[1748867078678,1.2985038,103930.0,103920.0,0.05758017]
[1748867079104,1.2814038,103930.0,103920.0,0.05758017]
[1748867079677,1.2632038,103930.0,103920.0,0.05758017]
[1748867079837,1.17069258,103930.0,103920.0,0.05758017]
[1748867080254,1.18919258,103930.0,103920.0,0.05758017]
[1748867080969,1.20689258,103930.0,103920.0,0.05758017]
[1748867081394,1.18919258,103930.0,103920.0,0.06433733]
[1748867081825,1.17069258,103930.0,103920.0,0.05758017]
[1748867082040,1.17069258,103930.0,103920.0,0.0818374]
[1748867082250,0.83069258,103930.0,103920.0,0.09953771]
[1748867082459,0.83069258,103930.0,103920.0,0.08183771]
[1748867083688,0.83069258,103930.0,103920.0,0.08183622]
[1748867084307,0.83069258,103930.0,103920.0,0.08183673]
[1748867084714,0.73069258,103930.0,103920.0,0.08183673]
[1748867085466,0.73069258,103930.0,103920.0,0.08183667]
[1748867086093,0.73069258,103930.0,103920.0,0.08183721]
[1748867086347,0.73069258,103930.0,103920.0,0.07508017]
[1748867086555,0.73069258,103930.0,103920.0,0.08183719]
[1748867086897,0.73069258,103930.0,103920.0,0.08183634]
[1748867087336,0.73069258,103930.0,103920.0,0.07508017]
[1748867087564,0.63069258,103930.0,103920.0,0.08183646]
[1748867087774,0.64046727,103930.0,103920.0,0.06433646]
[1748867087984,0.64046727,103930.0,103920.0,0.04911789]
[1748867088188,0.64046727,103930.0,103920.0,0.06814767]
[1748867088851,0.64046727,103930.0,103920.0,0.06814766]
[1748867089072,0.64046727,103930.0,103920.0,0.0613921]
[1748867089896,0.64046727,103930.0,103920.0,0.04911789]
[1748867090353,0.64046727,103930.0,103920.0,0.05587309]
[1748867090581,0.64046727,103930.0,103920.0,0.04911789]
[1748867091405,0.64046727,103930.0,103920.0,0.05587309]
[1748867091622,0.64046727,103930.0,103920.0,0.04911789]
[1748867091827,0.64046727,103930.0,103920.0,0.05587309]
[1748867092056,0.64046727,103930.0,103920.0,0.05587305]
[1748867092481,0.64046727,103930.0,103920.0,0.05587265]
[1748867092927,0.64046727,103930.0,103920.0,0.05587264]
[1748867093139,0.64046727,103930.0,103920.0,0.05587258]
[1748867093363,0.64046727,103930.0,103920.0,0.04911789]
[1748867093579,0.64046727,103930.0,103920.0,0.05587254]
[1748867094402,0.64046727,103930.0,103920.0,0.05587213]
[1748867094895,0.64046727,103930.0,103920.0,0.07347211]
[1748867095332,0.64046727,103930.0,103920.0,0.05587211]
[1748867096145,0.64046727,103930.0,103920.0,0.04911789]
[1748867096373,0.64046727,103930.0,103920.0,0.05587182]
[1748867096793,0.64046727,103930.0,103920.0,0.05587184]
[1748867097216,0.64046727,103930.0,103920.0,0.05587157]
[1748867097620,0.64046727,103930.0,103920.0,0.05587165]
[1748867097844,0.64046727,103930.0,103920.0,0.03893876]
[1748867098257,0.64046727,103930.0,103920.0,0.03218507]
[1748867098457,0.64046727,103930.0,103920.0,0.03047238]
[1748867099495,0.64046727,103930.0,103920.0,0.03047251]
[1748867099702,0.64046727,103930.0,103920.0,0.02371866]
[1748867099928,0.01578975,103930.0,103920.0,0.14402681]
[1748867100176,0.01077469,103930.0,103920.0,0.16272674]
[1748867100416,0.01077469,103930.0,103920.0,0.14402667]
[1748867100839,0.01077469,103930.0,103920.0,0.12632671]
[1748867101465,0.01077469,103930.0,103920.0,0.11957296]
[1748867101685,0.01077469,103930.0,103920.0,0.13717296]
[1748867101894,0.001,103930.0,103920.0,0.17120026]
[1748867102116,0.001,103930.0,103920.0,0.18035931]
[1748867102330,0.001,103930.0,103920.0,0.16212653]
[1748867102743,0.001,103930.0,103920.0,0.15537296]
[1748867102958,0.001,103930.0,103920.0,0.16212515]
[1748867103168,0.001,103930.0,103920.0,0.14392515]
[1748867103605,0.001,103930.0,103920.0,0.14392516]
[1748867104048,0.001,103930.0,103920.0,0.20590263]
[1748867104260,0.001,103930.0,103920.0,0.20349728]
[1748867105134,0.001,103930.0,103920.0,0.20349672]
[1748867105732,0.001,103930.0,103920.0,0.16132434]
[1748867105935,0.001,103930.0,103920.0,0.16372977]
[1748867106130,0.001,103930.0,103920.0,0.15697831]
[1748867106329,0.001,103930.0,103920.0,0.01445877]
[1748867106605,0.001,103930.0,103920.0,0.10501111]
[1748867106819,0.001,103930.0,103920.0,0.10260576]
[1748867107004,0.001,103930.0,103920.0,0.0958543]
[1748867107174,0.0193,103930.0,103920.0,0.0958543]
[1748867107779,0.0375,103930.0,103910.0,0.02]
[1748867108004,0.0375,103930.0,103910.0,0.1158543]
[1748867108681,0.0365,103930.0,103910.0,0.1158543]
[1748867108885,0.0365,103930.0,103910.0,0.1168543]
[1748867109714,0.035,103920.0,103910.0,0.1168543]
[1748867110129,0.035,103920.0,103910.0,0.1188543]
[1748867110543,0.035,103920.0,103910.0,0.023]
[1748867110759,0.035,103920.0,103910.0,0.021]
[1748867111167,0.035,103920.0,103910.0,0.023]
[1748867111372,0.035,103920.0,103910.0,0.022]
[1748867111574,0.035,103920.0,103910.0,0.023]
[1748867118454,0.035,103920.0,103910.0,0.02975563]
[1748867120128,0.035,103920.0,103910.0,0.02975584]
[1748867121148,0.035,103920.0,103910.0,0.023]
[1748867121358,0.035,103920.0,103910.0,0.02975603]
[1748867122019,0.035,103920.0,103910.0,0.02975621]
[1748867122444,0.34967769,103940.0,103910.0,0.02975621]
[1748867122445,0.0354,103930.0,103910.0,0.33973748]
[1748867122655,0.0354,103930.0,103910.0,0.36376072]
[1748867122861,0.0354,103930.0,103910.0,0.36376082]
[1748867123074,0.0354,103930.0,103910.0,0.35413757]
[1748867123278,0.0354,103930.0,103910.0,0.349361]
[1748867123488,0.0354,103930.0,103910.0,0.32998144]
[1748867123693,0.0354,103930.0,103910.0,0.34260487]
[1748867124324,0.0354,103930.0,103910.0,0.33298144]
[1748867124740,0.0354,103930.0,103910.0,0.34260487]
[1748867125360,0.0354,103930.0,103910.0,0.33298144]
[1748867126797,0.0354,103930.0,103910.0,0.34260478]
[1748867127222,0.0354,103930.0,103910.0,0.34260487]
[1748867127427,0.0354,103930.0,103910.0,0.35222821]
[1748867128257,0.0354,103930.0,103910.0,0.4249393]
[1748867128472,0.04587769,103940.0,103920.0,0.29793272]
[1748867129937,0.04687769,103940.0,103920.0,0.29793272]
[1748867130979,0.04687769,103940.0,103920.0,0.29793281]
[1748867131191,0.04687769,103940.0,103920.0,0.3075555]
[1748867131698,0.04687769,103940.0,103920.0,0.29793281]
[1748867132180,0.0344,103930.0,103910.0,0.03535239]
[1748867132400,0.0344,103920.0,103910.0,0.13120669]
[1748867132617,0.0344,103920.0,103910.0,0.1158543]
[1748867132831,0.0344,103920.0,103910.0,0.02]
[1748867133245,0.0344,103920.0,103910.0,0.021]
[1748867133660,0.0344,103920.0,103910.0,0.023]
[1748867133866,0.0344,103920.0,103910.0,0.31032855]
[1748867134082,0.0344,103920.0,103910.0,0.33057588]
[1748867134281,0.0344,103920.0,103910.0,0.40695623]
[1748867134483,0.0344,103920.0,103910.0,0.32095226]
[1748867135543,0.0344,103920.0,103910.0,0.1188543]
[1748867136734,0.0344,103920.0,103910.0,0.12847801]
[1748867136940,0.0344,103920.0,103910.0,0.1188543]
[1748867140350,0.0344,103920.0,103910.0,0.12847801]
[1748867140580,0.0344,103920.0,103910.0,0.32095226]
[1748867141260,0.0344,103920.0,103910.0,0.13810163]
[1748867141994,0.0344,103920.0,103910.0,0.12847801]
[1748867142535,0.0344,103920.0,103910.0,0.1188543]
[1748867142741,0.0344,103920.0,103910.0,0.12847801]
[1748867143304,0.0344,103920.0,103910.0,0.1188543]
[1748867143732,0.0344,103920.0,103910.0,0.12847801]
[1748867144383,0.0344,103920.0,103910.0,0.32095217]
[1748867145089,0.0344,103920.0,103910.0,0.33057569]
[1748867145502,0.0367,103930.0,103910.0,0.43073193]
[1748867145711,0.0367,103930.0,103920.0,0.0958543]
[1748867148442,0.0377,103930.0,103920.0,0.0958543]
[1748867154892,0.0348,103920.0,103910.0,0.02]
[1748867155989,0.0348,103920.0,103910.0,0.1158543]
[1748867156227,0.0348,103920.0,103910.0,0.1168543]
[1748867156446,0.0348,103920.0,103910.0,0.11925992]
[1748867156670,0.0348,103920.0,103910.0,0.1168543]
[1748867156895,0.0348,103920.0,103910.0,0.32095207]
[1748867157143,0.0351,103930.0,103920.0,0.19245573]
[1748867157385,0.0168,103930.0,103920.0,0.0958543]
[1748867157635,0.0168,103930.0,103920.0,0.30033811]
[1748867157848,0.0168,103930.0,103920.0,0.0958543]
[1748867158064,0.0168,103930.0,103920.0,0.30033812]
[1748867158276,0.0168,103930.0,103920.0,0.0958543]
[1748867158498,0.0354,103930.0,103920.0,0.10788239]
[1748867158723,0.0354,103930.0,103920.0,0.09825961]
[1748867158941,0.0354,103930.0,103920.0,0.10788239]
[1748867159166,0.0354,103930.0,103920.0,0.09825961]
[1748867160729,0.0354,103930.0,103920.0,0.0958543]
[1748867166184,0.0354,103930.0,103920.0,0.09825963]
[1748867166402,0.0354,103930.0,103920.0,0.0958543]
[1748867167909,0.0354,103930.0,103920.0,0.13352737]
[1748867168380,0.0354,103930.0,103920.0,0.0958543]
[1748867168610,0.0354,103930.0,103920.0,0.09825963]
[1748867168839,0.0354,103930.0,103920.0,0.29071536]
[1748867169122,0.001,103930.0,103920.0,0.29793263]
[1748867169335,0.001,103930.0,103920.0,0.32209598]
[1748867169817,0.001,103930.0,103920.0,0.38064438]
[1748867170034,0.001,103930.0,103920.0,0.39026661]
[1748867170246,0.001,103930.0,103920.0,0.41618874]
[1748867170680,0.001,103930.0,103920.0,0.43328604]
[1748867171309,0.001,103930.0,103920.0,0.42798604]
[1748867171729,0.001,103930.0,103920.0,0.35234034]
[1748867172579,0.001,103930.0,103920.0,0.34271821]
[1748867172800,0.001,103930.0,103920.0,0.35881576]
[1748867173670,0.001,103930.0,103920.0,0.34134034]
[1748867174089,0.001,103930.0,103920.0,0.36202152]
[1748867174301,0.001,103930.0,103920.0,0.71620018]
[1748867175157,0.001,103930.0,103920.0,0.73250018]
[1748867175387,0.001,103930.0,103920.0,0.45527093]
[1748867176262,0.1,103930.0,103920.0,0.45527093]
[1748867176482,0.1,103930.0,103920.0,0.45627093]
[1748867176719,0.1,103930.0,103920.0,0.45827093]
[1748867176932,0.1,103930.0,103920.0,0.45527093]
[1748867177360,0.1,103930.0,103920.0,0.47827212]
[1748867178649,0.1,103930.0,103920.0,0.40039346]
[1748867178855,0.1331,103930.0,103920.0,0.40039346]
[1748867179061,0.1164,103930.0,103920.0,0.37971228]
[1748867179288,0.1,103930.0,103920.0,0.37971228]
[1748867180119,0.1,103930.0,103920.0,0.39071228]
[1748867180342,0.1,103930.0,103920.0,0.45592349]
[1748867180593,0.1,103930.0,103920.0,0.80012349]
[1748867180804,0.1,103930.0,103920.0,0.84763627]
[1748867181043,0.1,103930.0,103920.0,0.8783678]
[1748867181259,0.1,103930.0,103920.0,0.84436227]
[1748867181475,0.00048624,103950.0,103940.0,0.57648038]
[1748867181684,0.0164,103980.0,103970.0,0.23575738]
[1748867181925,0.0323,103980.0,103970.0,0.32199427]
[1748867182140,0.0323,103980.0,103970.0,0.34122965]
[1748867182347,0.0323,103980.0,103970.0,0.35832682]
[1748867182555,0.0323,103980.0,103970.0,0.35832691]
[1748867182771,0.0323,103980.0,103970.0,0.40007544]
[1748867182970,0.11060965,103990.0,103980.0,0.21650257]
[1748867183188,0.11060965,103990.0,103980.0,0.11039515]
[1748867183400,0.11060965,103990.0,103980.0,0.11294982]
[1748867184242,0.03364587,103990.0,103980.0,0.33906953]
[1748867184458,0.03364587,103990.0,103980.0,0.39927292]
[1748867184911,0.03364587,103990.0,103980.0,0.40888987]
[1748867185355,0.03364587,103990.0,103980.0,0.42812331]
[1748867185816,0.03464587,103990.0,103980.0,0.42812331]
[1748867186053,0.00114587,103990.0,103980.0,0.42812331]
[1748867186303,0.00114587,103990.0,103980.0,0.43912331]
[1748867186522,0.00114587,103990.0,103980.0,1.07592331]
[1748867186766,0.00114587,103990.0,103980.0,1.09346592]
[1748867186997,0.00214587,103990.0,103980.0,1.09346592]
[1748867188418,0.00214587,103990.0,103980.0,1.07826592]
[1748867188941,0.00014587,103990.0,103980.0,1.07826592]
[1748867189181,0.03364587,103990.0,103980.0,0.74226592]
[1748867190036,0.03364587,103990.0,103980.0,0.44966592]
[1748867193748,0.01734587,103990.0,103980.0,0.44966592]
[1748867195059,0.03344587,103990.0,103980.0,0.44966592]
[1748867195959,0.03344587,103990.0,103980.0,0.40327255]
[1748867196235,0.03344587,103990.0,103980.0,0.35268583]
[1748867196886,0.03344587,103990.0,103980.0,0.34306916]
[1748867197095,0.03344587,103990.0,103980.0,0.3526862]
[1748867197348,0.03344587,103990.0,103980.0,0.37191945]
[1748867197784,0.03344587,103990.0,103980.0,0.36230287]
[1748867198007,0.03344587,103990.0,103980.0,0.42366891]
[1748867198655,0.03344587,103990.0,103980.0,0.43328549]
[1748867199307,0.03344587,103990.0,103980.0,0.42366891]
[1748867199519,0.03344587,103990.0,103980.0,0.39481853]
[1748867199740,0.03344587,103990.0,103980.0,0.40443557]
[1748867199962,0.03344587,103990.0,103980.0,0.42366929]
[1748867200194,0.03344587,103990.0,103980.0,0.41405252]
[1748867200400,0.03344587,103990.0,103980.0,0.40443548]
[1748867200606,0.03344587,103990.0,103980.0,0.41405234]
[1748867201096,0.03344587,103990.0,103980.0,0.70665234]
[1748867201328,0.03344587,103990.0,103980.0,0.69703548]
[1748867201533,0.03344587,103990.0,103980.0,0.13149067]
[1748867202415,0.03344587,103990.0,103980.0,0.11694982]
[1748867207777,0.03344587,103990.0,103980.0,0.34776231]
[1748867208972,0.00014587,103990.0,103980.0,1.02443434]
[1748867209193,0.00014587,103990.0,103980.0,1.10161438]
[1748867210239,0.00014587,103990.0,103980.0,1.09961438]
[1748867210449,0.00014587,103990.0,103980.0,1.09761438]
[1748867210666,0.0323,104010.0,104000.0,0.23569357]
[1748867210888,0.0157486,104010.0,104000.0,0.3468832]
[1748867211107,0.0157486,104010.0,104000.0,0.40272559]
[1748867211796,0.0167486,104010.0,104000.0,0.40272559]
[1748867212675,0.0167486,104010.0,104000.0,0.43158659]
[1748867213316,0.0177486,104010.0,104000.0,0.43158659]
[1748867216369,0.0339486,104010.0,104000.0,0.43158659]
[1748867219303,0.04175171,104030.0,104020.0,0.23565104]
[1748867219515,0.04180031,104030.0,104020.0,0.16459761]
[1748867219936,0.04180031,104030.0,104020.0,0.13472885]
[1748867220389,0.04580031,104030.0,104020.0,0.13472885]
[1748867220836,0.04280031,104030.0,104020.0,0.0958543]
[1748867221291,0.034,104010.0,104000.0,0.0711703]
[1748867221505,0.034,104010.0,104000.0,0.11118221]
[1748867221726,0.034,104010.0,104000.0,0.12572306]
[1748867223451,0.034,104010.0,104000.0,0.13172306]
[1748867223664,0.034,104010.0,104000.0,0.1018543]
[1748867228634,0.034,104010.0,104000.0,0.10425779]
[1748867229022,0.034,104010.0,104000.0,0.16855366]
[1748867229430,0.034,104010.0,104000.0,0.37047654]
[1748867229655,0.034,104010.0,104000.0,0.36807315]
[1748867229780,0.034,104010.0,104000.0,0.39222901]
[1748867229992,0.016,104020.0,104010.0,0.23567231]
[1748867230192,0.0169,104020.0,104010.0,0.41117735]
[1748867230406,0.04210031,104030.0,104020.0,0.22603835]
[1748867230620,0.04210031,104030.0,104020.0,0.3315059]
[1748867230820,0.04210031,104030.0,104020.0,0.35073176]
[1748867231106,0.02530031,104030.0,104020.0,0.40934122]
[1748867231491,0.00900031,104030.0,104020.0,0.42466913]
[1748867232061,0.00900031,104030.0,104020.0,0.45603531]
[1748867232259,0.00900031,104030.0,104020.0,0.42466913]
[1748867232579,0.04050031,104030.0,104020.0,0.42466913]
[1748867233019,0.02480031,104030.0,104020.0,0.42466913]
[1748867233373,0.00900031,104030.0,104020.0,0.42466913]
[1748867233577,0.00900031,104030.0,104020.0,0.40934122]
[1748867234017,0.00900031,104030.0,104020.0,0.70194122]
[1748867234211,0.00900031,104030.0,104020.0,0.71726913]
[1748867234844,0.00900031,104030.0,104020.0,0.74612413]
[1748867235046,0.00900031,104030.0,104020.0,0.74812413]
[1748867235247,0.00900031,104030.0,104020.0,0.77957654]
[1748867235418,0.00900031,104030.0,104020.0,0.74812413]
[1748867235637,0.04320031,104030.0,104020.0,0.74812413]
[1748867235841,0.04320031,104030.0,104020.0,0.74912413]
[1748867237975,0.04320031,104030.0,104020.0,0.73951143]
[1748867238196,0.04320031,104030.0,104020.0,0.74912431]
[1748867239533,0.02580031,104030.0,104020.0,0.74912431]
[1748867240266,0.00900031,104030.0,104020.0,1.09962431]
[1748867240493,0.00900031,104030.0,104020.0,1.0842964]
[1748867243609,0.00900031,104030.0,104020.0,1.0737964]
[1748867244665,0.00900031,104030.0,104020.0,1.08910372]
[1748867245531,0.00900031,104030.0,104020.0,1.0891026]
[1748867245773,0.00900031,104030.0,104020.0,1.0737964]
[1748867248916,0.00900031,104030.0,104020.0,1.0842964]
[1748867249569,0.00900031,104030.0,104020.0,1.0889964]
[1748867250637,0.00900031,104030.0,104020.0,1.0842964]